[Event "January 2 Late 2024"]
[Site "https://www.chess.com"]
[Date "2024.01.02"]
[Round "9"]
[White "Gulamirian, Korun"]
[Black "yujiarun18"]
[Result "0-1"]
[Board "153"]
[TimeControl "180+1"]
[WhiteFideId "4144899"]
[WhiteElo "1600"]
[BlackElo "2146"]
[WhiteTeam "RUS"]
[WhiteClock "0:00:21"]
[BlackClock "0:00:14"]

1. e4 {[%clk 0:03:00]}  c5 {[%clk 0:02:59]} 2. Nf3 {[%clk 0:03:00]}  d6 {[%clk 0:02:59]} 3. d4 {[%clk 0:03:00]}  cxd4 {[%clk 0:03:00]} 4. Nxd4 {[%clk 0:03:00]}  Nf6 {[%clk 0:03:00]} 5. Nc3 {[%clk 0:02:59]}  a6 {[%clk 0:03:01]} 6. Be3 {[%clk 0:02:59]}  e5 {[%clk 0:03:01]} 7. Nb3 {[%clk 0:02:58]}  Be6 {[%clk 0:03:02]} 8. f3 {[%clk 0:02:58]}  Be7 {[%clk 0:02:59]} 9. Qd2 {[%clk 0:02:58]}  O-O {[%clk 0:02:59]} 10. O-O-O {[%clk 0:02:58]}  Nbd7 {[%clk 0:03:00]} 11. g4 {[%clk 0:02:56]}  b5 {[%clk 0:03:00]} 12. a3 {[%clk 0:02:54]}  Nb6 {[%clk 0:02:53]} 13. h4 {[%clk 0:02:51]}  Nc4 {[%clk 0:02:48]} 14. Bxc4 {[%clk 0:02:50]}  Bxc4 {[%clk 0:02:40]} 15. h5 {[%clk 0:02:46]}  a5 {[%clk 0:02:04]} 16. g5 {[%clk 0:02:40]}  Nd7 {[%clk 0:02:03]} 17. g6 {[%clk 0:02:39]}  f5 {[%clk 0:01:59]} 18. gxh7+ {[%clk 0:02:36]}  Kh8 {[%clk 0:01:59]} 19. h6 {[%clk 0:02:36]}  g6 {[%clk 0:01:54]} 20. exf5 {[%clk 0:02:35]}  Rxf5 {[%clk 0:01:52]} 21. f4 {[%clk 0:02:32]}  Kxh7 {[%clk 0:01:39]} 22. Nd5 {[%clk 0:02:29]}  Bf8 {[%clk 0:01:16]} 23. Kb1 {[%clk 0:02:02]}  a4 {[%clk 0:01:06]} 24. Nc1 {[%clk 0:01:57]}  Rc8 {[%clk 0:00:48]} 25. Ne2 {[%clk 0:01:48]}  Bxd5 {[%clk 0:00:46]} 26. Qxd5 {[%clk 0:01:47]}  exf4 {[%clk 0:00:46]} 27. Nxf4 {[%clk 0:01:46]}  Rxd5 {[%clk 0:00:45]} 28. Nxd5 {[%clk 0:01:42]}  Nf6 {[%clk 0:00:43]} 29. Bg5 {[%clk 0:01:41]}  Be7 {[%clk 0:00:41]} 30. Nxe7 {[%clk 0:01:35]}  Qxe7 {[%clk 0:00:40]} 31. Rhf1 {[%clk 0:01:33]}  Rf8 {[%clk 0:00:29]} 32. Rxd6 {[%clk 0:01:31]}  Qxd6 {[%clk 0:00:28]} 33. Bc1 {[%clk 0:01:07]}  Ne4 {[%clk 0:00:23]} 34. Re1 {[%clk 0:01:05]}  Nd2+ {[%clk 0:00:19]} 35. Ka1 {[%clk 0:01:02]}  Nc4 {[%clk 0:00:20]} 36. Kb1 {[%clk 0:01:00]}  Rf7 {[%clk 0:00:21]} 37. Re8 {[%clk 0:00:57]}  b4 {[%clk 0:00:20]} 38. Re4 {[%clk 0:00:52]}  Nb6 {[%clk 0:00:17]} 39. Rxb4 {[%clk 0:00:51]}  Nd7 {[%clk 0:00:18]} 40. Rxa4 {[%clk 0:00:51]}  Rf1 {[%clk 0:00:16]} 41. Ra7 {[%clk 0:00:43]}  Qd1 {[%clk 0:00:16]} 42. Ka2 {[%clk 0:00:41]}  Qxc1 {[%clk 0:00:15]} 43. Rxd7+ {[%clk 0:00:42]}  Kxh6 {[%clk 0:00:16]} 44. Rd3 {[%clk 0:00:38]}  Qxc2 {[%clk 0:00:15]} 45. Rc3 {[%clk 0:00:38]}  Qe4 {[%clk 0:00:14]} 46. Kb3 {[%clk 0:00:37]}  Qd5+ {[%clk 0:00:14]} 47. Kb4 {[%clk 0:00:21]}  Rf4+ {[%clk 0:00:14]} 0-1

[Event "January 2 Late 2024"]
[Site "https://www.chess.com"]
[Date "2024.01.02"]
[Round "10"]
[White "Nihal Sarin"]
[Black "Nakamura, Hikaru"]
[Result "1/2-1/2"]
[Board "1"]
[TimeControl "180+1"]
[WhiteFideId "25092340"]
[BlackFideId "2016192"]
[WhiteElo "3207"]
[BlackElo "3283"]
[WhiteTeam "IND"]
[BlackTeam "USA"]
[WhiteClock "0:00:06"]
[BlackClock "0:00:05"]

1. e4 {[%clk 0:03:00]}  e5 {[%clk 0:02:56]} 2. Nf3 {[%clk 0:03:00]}  Nc6 {[%clk 0:02:56]} 3. Bb5 {[%clk 0:02:58]}  Nf6 {[%clk 0:02:57]} 4. d3 {[%clk 0:02:58]}  Bc5 {[%clk 0:02:56]} 5. Bg5 {[%clk 0:02:58]}  O-O {[%clk 0:02:52]} 6. Nc3 {[%clk 0:02:49]}  h6 {[%clk 0:02:33]} 7. Bh4 {[%clk 0:02:49]}  Be7 {[%clk 0:02:29]} 8. Bxc6 {[%clk 0:02:49]}  dxc6 {[%clk 0:02:26]} 9. Bg3 {[%clk 0:02:48]}  Bg4 {[%clk 0:02:16]} 10. Bxe5 {[%clk 0:02:46]}  Nd7 {[%clk 0:02:16]} 11. Bf4 {[%clk 0:02:42]}  f5 {[%clk 0:02:16]} 12. h3 {[%clk 0:02:11]}  fxe4 {[%clk 0:02:10]} 13. Nxe4 {[%clk 0:02:06]}  Bxf3 {[%clk 0:01:33]} 14. Qxf3 {[%clk 0:02:07]}  g5 {[%clk 0:01:33]} 15. Qh5 {[%clk 0:02:03]}  Rxf4 {[%clk 0:01:25]} 16. Qg6+ {[%clk 0:02:03]}  Kh8 {[%clk 0:01:19]} 17. Qxh6+ {[%clk 0:02:03]}  Kg8 {[%clk 0:01:20]} 18. Qg6+ {[%clk 0:02:04]}  Kh8 {[%clk 0:01:20]} 19. g3 {[%clk 0:01:56]}  Rxe4+ {[%clk 0:01:12]} 20. dxe4 {[%clk 0:01:50]}  Qg8 {[%clk 0:01:08]} 21. Qh6+ {[%clk 0:01:36]}  Qh7 {[%clk 0:01:08]} 22. Qxh7+ {[%clk 0:01:37]}  Kxh7 {[%clk 0:01:09]} 23. O-O-O {[%clk 0:01:32]}  Bd6 {[%clk 0:01:09]} 24. Rhf1 {[%clk 0:01:20]}  Re8 {[%clk 0:01:07]} 25. Rde1 {[%clk 0:01:19]}  Nc5 {[%clk 0:01:00]} 26. e5 {[%clk 0:01:18]}  Rxe5 {[%clk 0:01:00]} 27. Rxe5 {[%clk 0:01:18]}  Bxe5 {[%clk 0:01:01]} 28. Re1 {[%clk 0:01:16]}  Bd6 {[%clk 0:00:57]} 29. Re8 {[%clk 0:01:10]}  a5 {[%clk 0:00:57]} 30. Kd2 {[%clk 0:01:07]}  Kg7 {[%clk 0:00:56]} 31. b3 {[%clk 0:01:02]}  Kf7 {[%clk 0:00:54]} 32. Ra8 {[%clk 0:00:58]}  b6 {[%clk 0:00:53]} 33. Ke3 {[%clk 0:00:58]}  Kf6 {[%clk 0:00:52]} 34. Rg8 {[%clk 0:00:54]}  Ne6 {[%clk 0:00:48]} 35. c3 {[%clk 0:00:55]}  Be5 {[%clk 0:00:46]} 36. Kd2 {[%clk 0:00:43]}  Nc5 {[%clk 0:00:42]} 37. Rf8+ {[%clk 0:00:43]}  Ke7 {[%clk 0:00:41]} 38. Rf5 {[%clk 0:00:37]}  Ke6 {[%clk 0:00:41]} 39. g4 {[%clk 0:00:37]}  Bf6 {[%clk 0:00:36]} 40. f3 {[%clk 0:00:22]}  Ke7 {[%clk 0:00:36]} 41. Ke3 {[%clk 0:00:18]}  Ne6 {[%clk 0:00:36]} 42. h4 {[%clk 0:00:19]}  gxh4 {[%clk 0:00:31]} 43. Rh5 {[%clk 0:00:16]}  Bxc3 {[%clk 0:00:31]} 44. f4 {[%clk 0:00:17]}  c5 {[%clk 0:00:28]} 45. f5 {[%clk 0:00:11]}  Ng7 {[%clk 0:00:24]} 46. Rxh4 {[%clk 0:00:11]}  b5 {[%clk 0:00:22]} 47. Rh6 {[%clk 0:00:09]}  Bf6 {[%clk 0:00:22]} 48. Kf4 {[%clk 0:00:08]}  Bb2 {[%clk 0:00:16]} 49. g5 {[%clk 0:00:08]}  Ne8 {[%clk 0:00:16]} 50. Re6+ {[%clk 0:00:08]}  Kd7 {[%clk 0:00:16]} 51. Re2 {[%clk 0:00:09]}  Bd4 {[%clk 0:00:14]} 52. Rd2 {[%clk 0:00:09]}  Ke7 {[%clk 0:00:14]} 53. Re2+ {[%clk 0:00:09]}  Kd7 {[%clk 0:00:15]} 54. Kg4 {[%clk 0:00:09]}  c4 {[%clk 0:00:14]} 55. bxc4 {[%clk 0:00:09]}  bxc4 {[%clk 0:00:15]} 56. Kh5 {[%clk 0:00:08]}  c3 {[%clk 0:00:16]} 57. Kg6 {[%clk 0:00:09]}  Nd6 {[%clk 0:00:13]} 58. f6 {[%clk 0:00:09]}  Kc6 {[%clk 0:00:13]} 59. f7 {[%clk 0:00:08]}  Nxf7 {[%clk 0:00:14]} 60. Kxf7 {[%clk 0:00:09]}  Kd5 {[%clk 0:00:15]} 61. g6 {[%clk 0:00:09]}  Kc4 {[%clk 0:00:15]} 62. Rg2 {[%clk 0:00:07]}  Kd3 {[%clk 0:00:15]} 63. Rg3+ {[%clk 0:00:07]}  Kd2 {[%clk 0:00:15]} 64. Rg2+ {[%clk 0:00:07]}  Kd3 {[%clk 0:00:11]} 65. Rg3+ {[%clk 0:00:08]}  Kd2 {[%clk 0:00:09]} 66. Rg2+ {[%clk 0:00:08]}  Kd1 {[%clk 0:00:09]} 67. g7 {[%clk 0:00:04]}  Bxg7 {[%clk 0:00:09]} 68. Rg1+ {[%clk 0:00:03]}  Kd2 {[%clk 0:00:09]} 69. Rg2+ {[%clk 0:00:04]}  Kc1 {[%clk 0:00:07]} 70. Kxg7 {[%clk 0:00:03]}  c2 {[%clk 0:00:08]} 71. Rg5 {[%clk 0:00:03]}  Kb2 {[%clk 0:00:04]} 72. Rb5+ {[%clk 0:00:03]}  Kxa2 {[%clk 0:00:03]} 73. Rxa5+ {[%clk 0:00:04]}  Kb2 {[%clk 0:00:03]} 74. Rb5+ {[%clk 0:00:04]}  Kc3 {[%clk 0:00:04]} 75. Rc5+ {[%clk 0:00:04]}  Kd2 {[%clk 0:00:04]} 76. Rxc7 {[%clk 0:00:05]}  c1=Q {[%clk 0:00:04]} 77. Rxc1 {[%clk 0:00:06]}  Kxc1 {[%clk 0:00:05]} 1/2-1/2

[Event "January 2 Late 2024"]
[Site "https://www.chess.com"]
[Date "2024.01.02"]
[Round "10"]
[White "Sarana, Alexey"]
[Black "Caruana, Fabiano"]
[Result "1-0"]
[Board "2"]
[TimeControl "180+1"]
[WhiteFideId "24133795"]
[BlackFideId "2020009"]
[WhiteElo "3033"]
[BlackElo "3072"]
[WhiteTeam "SRB"]
[BlackTeam "USA"]
[WhiteClock "0:00:09"]
[BlackClock "0:00:00"]

1. d4 {[%clk 0:03:00]}  Nf6 {[%clk 0:03:00]} 2. c4 {[%clk 0:03:00]}  e6 {[%clk 0:03:00]} 3. Nc3 {[%clk 0:03:01]}  Bb4 {[%clk 0:03:01]} 4. e3 {[%clk 0:03:02]}  c5 {[%clk 0:03:00]} 5. Bd3 {[%clk 0:03:01]}  d5 {[%clk 0:02:58]} 6. Nf3 {[%clk 0:03:00]}  dxc4 {[%clk 0:02:56]} 7. Bxc4 {[%clk 0:03:01]}  O-O {[%clk 0:02:56]} 8. O-O {[%clk 0:03:01]}  Nc6 {[%clk 0:02:57]} 9. a3 {[%clk 0:02:59]}  Ba5 {[%clk 0:02:57]} 10. h3 {[%clk 0:02:59]}  a6 {[%clk 0:02:31]} 11. dxc5 {[%clk 0:02:57]}  Bxc3 {[%clk 0:02:30]} 12. bxc3 {[%clk 0:02:57]}  Qe7 {[%clk 0:02:30]} 13. a4 {[%clk 0:02:47]}  Qxc5 {[%clk 0:02:28]} 14. Qe2 {[%clk 0:02:27]}  Rd8 {[%clk 0:02:26]} 15. e4 {[%clk 0:02:15]}  Ne5 {[%clk 0:02:15]} 16. Nxe5 {[%clk 0:02:07]}  Qxe5 {[%clk 0:02:16]} 17. f3 {[%clk 0:01:53]}  Bd7 {[%clk 0:02:12]} 18. Be3 {[%clk 0:01:51]}  Qxc3 {[%clk 0:02:06]} 19. Rfc1 {[%clk 0:01:39]}  Qe5 {[%clk 0:02:06]} 20. Qe1 {[%clk 0:01:09]}  Bc6 {[%clk 0:02:03]} 21. Bf1 {[%clk 0:01:07]}  h6 {[%clk 0:01:50]} 22. Rc5 {[%clk 0:01:01]}  Qc7 {[%clk 0:01:50]} 23. a5 {[%clk 0:01:00]}  Qe7 {[%clk 0:01:46]} 24. Rc2 {[%clk 0:00:56]}  Nd7 {[%clk 0:01:36]} 25. Qg3 {[%clk 0:00:52]}  Qf6 {[%clk 0:01:30]} 26. Rac1 {[%clk 0:00:39]}  Ne5 {[%clk 0:01:27]} 27. Rc5 {[%clk 0:00:34]}  Ng6 {[%clk 0:01:23]} 28. Kh2 {[%clk 0:00:31]}  Rd7 {[%clk 0:01:16]} 29. R5c3 {[%clk 0:00:28]}  e5 {[%clk 0:01:12]} 30. Rc5 {[%clk 0:00:27]}  Rd6 {[%clk 0:01:06]} 31. Qg4 {[%clk 0:00:26]}  Rad8 {[%clk 0:01:03]} 32. Qf5 {[%clk 0:00:25]}  Qe7 {[%clk 0:00:58]} 33. Qh5 {[%clk 0:00:20]}  Qe8 {[%clk 0:00:46]} 34. Bc4 {[%clk 0:00:18]}  Kh7 {[%clk 0:00:45]} 35. Qf5 {[%clk 0:00:18]}  Rf6 {[%clk 0:00:44]} 36. Qg4 {[%clk 0:00:17]}  Nf4 {[%clk 0:00:39]} 37. Rc2 {[%clk 0:00:11]}  Rdd6 {[%clk 0:00:32]} 38. Qh4 {[%clk 0:00:10]}  g5 {[%clk 0:00:23]} 39. Qe1 {[%clk 0:00:09]}  h5 {[%clk 0:00:20]} 40. Qc3 {[%clk 0:00:09]}  Qd7 {[%clk 0:00:08]} 41. Qxe5 {[%clk 0:00:09]}  Rg6 {[%clk 0:00:03]} 42. Bxf4 {[%clk 0:00:09]}  gxf4 {[%clk 0:00:03]} 43. Qxf4 {[%clk 0:00:10]}  Kg7 {[%clk 0:00:01]} 44. Rxh5 {[%clk 0:00:10]}  Rdf6 {[%clk 0:00:02]} 45. Qh4 {[%clk 0:00:09]}  Kf8 {[%clk 0:00:00]} 46. Rh8+ {[%clk 0:00:09]} 1-0

[Event "January 2 Late 2024"]
[Site "https://www.chess.com"]
[Date "2024.01.02"]
[Round "10"]
[White "Paravyan, David"]
[Black "Le, Tuan Minh"]
[Result "1-0"]
[Board "3"]
[TimeControl "180+1"]
[WhiteFideId "4194985"]
[BlackFideId "12401153"]
[WhiteElo "3115"]
[BlackElo "3033"]
[WhiteTeam "FID"]
[BlackTeam "VIE"]
[WhiteClock "0:00:42"]
[BlackClock "0:00:02"]

1. e4 {[%clk 0:03:00]}  e5 {[%clk 0:03:00]} 2. Nf3 {[%clk 0:03:01]}  Nc6 {[%clk 0:03:00]} 3. Bc4 {[%clk 0:02:59]}  Bc5 {[%clk 0:03:00]} 4. d3 {[%clk 0:02:59]}  d6 {[%clk 0:02:59]} 5. Nc3 {[%clk 0:02:57]}  Nf6 {[%clk 0:02:58]} 6. Na4 {[%clk 0:02:57]}  Bb6 {[%clk 0:02:56]} 7. c3 {[%clk 0:02:56]}  h6 {[%clk 0:02:49]} 8. h3 {[%clk 0:02:54]}  O-O {[%clk 0:02:49]} 9. O-O {[%clk 0:02:55]}  Re8 {[%clk 0:02:37]} 10. Re1 {[%clk 0:02:54]}  Be6 {[%clk 0:02:37]} 11. Bb5 {[%clk 0:02:45]}  Bd7 {[%clk 0:02:34]} 12. Nxb6 {[%clk 0:02:33]}  axb6 {[%clk 0:02:35]} 13. Ba4 {[%clk 0:02:28]}  Ne7 {[%clk 0:02:07]} 14. Bc2 {[%clk 0:02:23]}  Ng6 {[%clk 0:02:08]} 15. d4 {[%clk 0:02:22]}  Bc6 {[%clk 0:01:57]} 16. d5 {[%clk 0:02:19]}  Bd7 {[%clk 0:01:56]} 17. Be3 {[%clk 0:02:15]}  Nh7 {[%clk 0:01:55]} 18. c4 {[%clk 0:02:14]}  Rf8 {[%clk 0:01:53]} 19. b4 {[%clk 0:02:12]}  f5 {[%clk 0:01:45]} 20. exf5 {[%clk 0:02:07]}  Bxf5 {[%clk 0:01:45]} 21. Bxf5 {[%clk 0:02:00]}  Rxf5 {[%clk 0:01:46]} 22. c5 {[%clk 0:01:56]}  bxc5 {[%clk 0:01:43]} 23. bxc5 {[%clk 0:01:57]}  Nf6 {[%clk 0:01:32]} 24. Qb1 {[%clk 0:01:47]}  e4 {[%clk 0:01:15]} 25. Nd4 {[%clk 0:01:45]}  Rxd5 {[%clk 0:01:15]} 26. Qxb7 {[%clk 0:01:38]}  dxc5 {[%clk 0:00:31]} 27. Ne6 {[%clk 0:01:35]}  Qc8 {[%clk 0:00:32]} 28. Qxc8+ {[%clk 0:01:33]}  Rxc8 {[%clk 0:00:33]} 29. Nxc5 {[%clk 0:01:32]}  Ne5 {[%clk 0:00:33]} 30. Rec1 {[%clk 0:01:11]}  Ra8 {[%clk 0:00:30]} 31. a4 {[%clk 0:01:11]}  Nd3 {[%clk 0:00:26]} 32. Rc4 {[%clk 0:01:00]}  Ne5 {[%clk 0:00:16]} 33. Rc3 {[%clk 0:00:55]}  Rd6 {[%clk 0:00:16]} 34. Bf4 {[%clk 0:00:48]}  Rd5 {[%clk 0:00:12]} 35. Ne6 {[%clk 0:00:45]}  Ne8 {[%clk 0:00:06]} 36. Nxc7 {[%clk 0:00:40]}  Nxc7 {[%clk 0:00:06]} 37. Rxc7 {[%clk 0:00:41]}  Nd3 {[%clk 0:00:05]} 38. Be3 {[%clk 0:00:42]}  Rda5 {[%clk 0:00:03]} 39. Rb1 {[%clk 0:00:42]}  Rxa4 {[%clk 0:00:02]} 40. Rbb7 {[%clk 0:00:43]}  Ne5 {[%clk 0:00:02]} 41. Rxg7+ {[%clk 0:00:42]}  Kf8 {[%clk 0:00:02]} 42. Bc5+ {[%clk 0:00:42]} 1-0

[Event "January 2 Late 2024"]
[Site "https://www.chess.com"]
[Date "2024.01.02"]
[Round "10"]
[White "Anton Guijarro, David"]
[Black "Oparin, Grigoriy"]
[Result "0-1"]
[Board "4"]
[TimeControl "180+1"]
[WhiteFideId "2285525"]
[BlackFideId "24125890"]
[WhiteElo "2998"]
[BlackElo "3059"]
[WhiteTeam "ESP"]
[BlackTeam "USA"]
[WhiteClock "0:00:02"]
[BlackClock "0:01:16"]

1. Nf3 {[%clk 0:02:59]}  c5 {[%clk 0:02:59]} 2. b3 {[%clk 0:03:00]}  d5 {[%clk 0:02:55]} 3. Bb2 {[%clk 0:03:00]}  Nc6 {[%clk 0:02:55]} 4. e3 {[%clk 0:03:00]}  a6 {[%clk 0:02:56]} 5. g3 {[%clk 0:02:57]}  Nf6 {[%clk 0:02:54]} 6. Bg2 {[%clk 0:02:57]}  e6 {[%clk 0:02:50]} 7. O-O {[%clk 0:02:54]}  Be7 {[%clk 0:02:51]} 8. c4 {[%clk 0:02:52]}  O-O {[%clk 0:02:49]} 9. d4 {[%clk 0:02:52]}  cxd4 {[%clk 0:02:41]} 10. Nxd4 {[%clk 0:02:51]}  Nxd4 {[%clk 0:02:35]} 11. Bxd4 {[%clk 0:02:43]}  dxc4 {[%clk 0:02:30]} 12. bxc4 {[%clk 0:02:44]}  Qc7 {[%clk 0:02:30]} 13. Qb3 {[%clk 0:02:44]}  Nd7 {[%clk 0:02:20]} 14. Nd2 {[%clk 0:02:34]}  Nc5 {[%clk 0:02:19]} 15. Qb2 {[%clk 0:02:34]}  f6 {[%clk 0:02:13]} 16. Rab1 {[%clk 0:02:12]}  e5 {[%clk 0:02:10]} 17. Bxc5 {[%clk 0:02:12]}  Bxc5 {[%clk 0:02:11]} 18. Bxb7 {[%clk 0:02:06]}  Ra7 {[%clk 0:01:55]} 19. Bxc8 {[%clk 0:02:00]}  Rxc8 {[%clk 0:01:56]} 20. Ne4 {[%clk 0:01:54]}  Qe7 {[%clk 0:01:49]} 21. Qb3 {[%clk 0:01:50]}  Rac7 {[%clk 0:01:48]} 22. Nc3 {[%clk 0:01:41]}  Qf7 {[%clk 0:01:44]} 23. Nd5 {[%clk 0:01:41]}  Rc6 {[%clk 0:01:44]} 24. Rfc1 {[%clk 0:01:32]}  h5 {[%clk 0:01:43]} 25. Qa4 {[%clk 0:01:24]}  Qe6 {[%clk 0:01:23]} 26. Qd1 {[%clk 0:01:19]}  h4 {[%clk 0:01:20]} 27. Qh5 {[%clk 0:01:19]}  h3 {[%clk 0:01:17]} 28. g4 {[%clk 0:01:16]}  Bf8 {[%clk 0:01:17]} 29. Qf5 {[%clk 0:00:02]}  Qxd5 {[%clk 0:01:16]} 0-1

[Event "January 2 Late 2024"]
[Site "https://www.chess.com"]
[Date "2024.01.02"]
[Round "10"]
[White "Livaic, Leon"]
[Black "Pranav, V"]
[Result "1-0"]
[Board "7"]
[TimeControl "180+1"]
[WhiteFideId "14531534"]
[BlackFideId "25060783"]
[WhiteElo "2913"]
[BlackElo "3036"]
[WhiteTeam "CRO"]
[BlackTeam "IND"]
[WhiteClock "0:00:06"]
[BlackClock "0:00:01"]

1. d4 {[%clk 0:03:00]}  Nf6 {[%clk 0:02:59]} 2. c4 {[%clk 0:03:01]}  e6 {[%clk 0:02:59]} 3. Nf3 {[%clk 0:03:01]}  b6 {[%clk 0:02:58]} 4. Bf4 {[%clk 0:03:01]}  Bb7 {[%clk 0:02:58]} 5. e3 {[%clk 0:03:01]}  Be7 {[%clk 0:02:58]} 6. Nc3 {[%clk 0:03:01]}  O-O {[%clk 0:02:59]} 7. h3 {[%clk 0:02:59]}  Bb4 {[%clk 0:02:57]} 8. Bd3 {[%clk 0:02:53]}  d6 {[%clk 0:02:56]} 9. O-O {[%clk 0:02:47]}  Bxc3 {[%clk 0:02:52]} 10. bxc3 {[%clk 0:02:47]}  Nbd7 {[%clk 0:02:53]} 11. a4 {[%clk 0:02:18]}  Re8 {[%clk 0:02:51]} 12. Bg3 {[%clk 0:02:16]}  e5 {[%clk 0:02:51]} 13. Bf5 {[%clk 0:02:13]}  g6 {[%clk 0:02:28]} 14. Bxd7 {[%clk 0:02:10]}  Nxd7 {[%clk 0:02:28]} 15. a5 {[%clk 0:02:04]}  Qe7 {[%clk 0:02:16]} 16. Nd2 {[%clk 0:01:47]}  Rab8 {[%clk 0:02:00]} 17. Re1 {[%clk 0:01:44]}  h5 {[%clk 0:01:59]} 18. f3 {[%clk 0:01:37]}  Nf8 {[%clk 0:01:54]} 19. e4 {[%clk 0:01:35]}  Ne6 {[%clk 0:01:53]} 20. Nf1 {[%clk 0:01:26]}  Qf6 {[%clk 0:01:47]} 21. Bf2 {[%clk 0:01:16]}  Rbd8 {[%clk 0:01:40]} 22. axb6 {[%clk 0:01:15]}  axb6 {[%clk 0:01:41]} 23. Ra7 {[%clk 0:01:16]}  Rb8 {[%clk 0:01:41]} 24. Qd2 {[%clk 0:00:58]}  Kh7 {[%clk 0:01:31]} 25. Rd1 {[%clk 0:00:57]}  c5 {[%clk 0:01:10]} 26. dxe5 {[%clk 0:00:46]}  dxe5 {[%clk 0:01:09]} 27. Ne3 {[%clk 0:00:47]}  Nf4 {[%clk 0:01:04]} 28. Bg3 {[%clk 0:00:36]}  Rbd8 {[%clk 0:00:26]} 29. Nd5 {[%clk 0:00:36]}  Bxd5 {[%clk 0:00:24]} 30. cxd5 {[%clk 0:00:36]}  g5 {[%clk 0:00:21]} 31. Bxf4 {[%clk 0:00:25]}  gxf4 {[%clk 0:00:22]} 32. d6 {[%clk 0:00:26]}  Rg8 {[%clk 0:00:19]} 33. Qd5 {[%clk 0:00:14]}  Rg7 {[%clk 0:00:17]} 34. Re7 {[%clk 0:00:12]}  Qg6 {[%clk 0:00:04]} 35. Rd2 {[%clk 0:00:11]}  Qg3 {[%clk 0:00:03]} 36. Rf2 {[%clk 0:00:06]}  Qg6 {[%clk 0:00:04]} 37. Rxe5 {[%clk 0:00:06]}  Kg8 {[%clk 0:00:02]} 38. d7 {[%clk 0:00:05]}  Kh7 {[%clk 0:00:01]} 39. Rxh5+ {[%clk 0:00:05]}  Kg8 {[%clk 0:00:01]} 40. Re5 {[%clk 0:00:04]}  Kh7 {[%clk 0:00:01]} 41. Re8 {[%clk 0:00:04]}  Rg8 {[%clk 0:00:01]} 42. Rxg8 {[%clk 0:00:04]}  Kxg8 {[%clk 0:00:01]} 43. Rd2 {[%clk 0:00:03]}  Qg3 {[%clk 0:00:01]} 44. Rd1 {[%clk 0:00:02]}  Qh4 {[%clk 0:00:01]} 45. Qf5 {[%clk 0:00:02]}  b5 {[%clk 0:00:01]} 46. Qg4+ {[%clk 0:00:02]}  Qxg4 {[%clk 0:00:01]} 47. hxg4 {[%clk 0:00:03]}  b4 {[%clk 0:00:01]} 48. cxb4 {[%clk 0:00:04]}  cxb4 {[%clk 0:00:02]} 49. Kf2 {[%clk 0:00:03]}  Kg7 {[%clk 0:00:02]} 50. g3 {[%clk 0:00:04]}  fxg3+ {[%clk 0:00:02]} 51. Kxg3 {[%clk 0:00:05]}  Kf6 {[%clk 0:00:02]} 52. Rb1 {[%clk 0:00:05]}  Rxd7 {[%clk 0:00:01]} 53. Rxb4 {[%clk 0:00:06]} 1-0

[Event "January 2 Late 2024"]
[Site "https://www.chess.com"]
[Date "2024.01.02"]
[Round "10"]
[White "Xiong, Jeffery"]
[Black "Melkumyan, Hrant"]
[Result "0-1"]
[Board "8"]
[TimeControl "180+1"]
[WhiteFideId "2047640"]
[BlackFideId "13302485"]
[WhiteElo "3022"]
[BlackElo "2898"]
[WhiteTeam "USA"]
[BlackTeam "ARM"]
[WhiteClock "0:00:29"]
[BlackClock "0:00:02"]

1. e4 {[%clk 0:03:00]}  e5 {[%clk 0:02:59]} 2. Nf3 {[%clk 0:03:01]}  Nc6 {[%clk 0:02:59]} 3. Nc3 {[%clk 0:03:01]}  Nf6 {[%clk 0:02:59]} 4. d4 {[%clk 0:03:02]}  exd4 {[%clk 0:03:00]} 5. Nxd4 {[%clk 0:03:03]}  Bc5 {[%clk 0:02:55]} 6. Be3 {[%clk 0:03:02]}  Bb6 {[%clk 0:02:55]} 7. Nxc6 {[%clk 0:02:55]}  bxc6 {[%clk 0:02:54]} 8. Qd2 {[%clk 0:02:55]}  O-O {[%clk 0:02:41]} 9. O-O-O {[%clk 0:02:55]}  Re8 {[%clk 0:02:41]} 10. f3 {[%clk 0:02:54]}  d5 {[%clk 0:02:37]} 11. Bc4 {[%clk 0:02:41]}  Be6 {[%clk 0:01:59]} 12. Bxb6 {[%clk 0:02:22]}  axb6 {[%clk 0:01:58]} 13. exd5 {[%clk 0:02:23]}  cxd5 {[%clk 0:01:59]} 14. Nxd5 {[%clk 0:02:24]}  Bxd5 {[%clk 0:01:44]} 15. Bxd5 {[%clk 0:02:25]}  Nxd5 {[%clk 0:01:44]} 16. Qxd5 {[%clk 0:02:25]}  Qxd5 {[%clk 0:01:44]} 17. Rxd5 {[%clk 0:02:26]}  Rxa2 {[%clk 0:01:45]} 18. Rhd1 {[%clk 0:02:27]}  g6 {[%clk 0:01:39]} 19. Kb1 {[%clk 0:02:23]}  Raa8 {[%clk 0:01:35]} 20. Rd7 {[%clk 0:02:23]}  Re2 {[%clk 0:01:31]} 21. R1d2 {[%clk 0:01:38]}  Re1+ {[%clk 0:01:24]} 22. Rd1 {[%clk 0:01:38]}  Re2 {[%clk 0:01:24]} 23. R1d2 {[%clk 0:01:38]}  Re1+ {[%clk 0:01:11]} 24. Rd1 {[%clk 0:01:38]}  Rae8 {[%clk 0:01:12]} 25. Kc1 {[%clk 0:01:36]}  R1e2 {[%clk 0:01:00]} 26. R1d2 {[%clk 0:01:32]}  Re1+ {[%clk 0:01:01]} 27. Rd1 {[%clk 0:01:33]}  R1e2 {[%clk 0:01:02]} 28. Rg1 {[%clk 0:01:18]}  c5 {[%clk 0:00:57]} 29. Rd6 {[%clk 0:01:18]}  Rf2 {[%clk 0:00:56]} 30. Rxb6 {[%clk 0:01:16]}  Ree2 {[%clk 0:00:56]} 31. c3 {[%clk 0:01:16]}  h5 {[%clk 0:00:52]} 32. h4 {[%clk 0:01:12]}  Kg7 {[%clk 0:00:52]} 33. Kb1 {[%clk 0:01:12]}  Rxg2 {[%clk 0:00:39]} 34. Rxg2 {[%clk 0:01:10]}  Rxg2 {[%clk 0:00:40]} 35. Rc6 {[%clk 0:01:11]}  g5 {[%clk 0:00:37]} 36. Rxc5 {[%clk 0:01:10]}  Kg6 {[%clk 0:00:32]} 37. Rc4 {[%clk 0:01:07]}  g4 {[%clk 0:00:20]} 38. Kc1 {[%clk 0:01:01]}  f5 {[%clk 0:00:15]} 39. b4 {[%clk 0:00:55]}  Rh2 {[%clk 0:00:12]} 40. b5 {[%clk 0:00:49]}  g3 {[%clk 0:00:12]} 41. Rc8 {[%clk 0:00:47]}  Kf7 {[%clk 0:00:11]} 42. Rc7+ {[%clk 0:00:47]}  Kf6 {[%clk 0:00:11]} 43. Rc6+ {[%clk 0:00:48]}  Kf7 {[%clk 0:00:11]} 44. Rc7+ {[%clk 0:00:49]}  Kf6 {[%clk 0:00:08]} 45. Rc6+ {[%clk 0:00:49]}  Ke7 {[%clk 0:00:03]} 46. Rg6 {[%clk 0:00:49]}  f4 {[%clk 0:00:03]} 47. Kd1 {[%clk 0:00:44]}  Rxh4 {[%clk 0:00:02]} 48. c4 {[%clk 0:00:44]}  Rh1+ {[%clk 0:00:02]} 49. Ke2 {[%clk 0:00:45]}  h4 {[%clk 0:00:02]} 50. c5 {[%clk 0:00:40]}  h3 {[%clk 0:00:02]} 51. Rg7+ {[%clk 0:00:29]}  Kf6 {[%clk 0:00:02]} 0-1